[Event "Early-Titled-Tuesday-Blitz-February-20-2024"]
[Site "Chess.com"]
[Date "2024.02.20"]
[Round "5"]
[White "DonkyDonkyDonkey"]
[Black "Ordekalog"]
[Result "1/2-1/2"]
[WhiteElo "2914"]
[BlackElo "2617"]
[TimeControl "180+1"]
[EndTime "8:58:35 PST"]
[Termination "Game drawn by repetition"]

1. e4 {[%clk 0:03:00.9]} 1... c5 {[%clk 0:02:59.4]} 2. Nc3 {[%clk 0:03:01.1]}
2... e6 {[%clk 0:02:58.3]} 3. f4 {[%clk 0:02:58.5]} 3... d5 {[%clk 0:02:55.8]}
4. Nf3 {[%clk 0:02:59]} 4... dxe4 {[%clk 0:02:53.8]} 5. Bb5+ {[%clk 0:02:58.5]}
5... Bd7 {[%clk 0:02:52.8]} 6. Bxd7+ {[%clk 0:02:58.7]} 6... Qxd7 {[%clk
0:02:51.9]} 7. Nxe4 {[%clk 0:02:59.6]} 7... Nc6 {[%clk 0:02:52.2]} 8. O-O {[%clk
0:02:59.6]} 8... Nf6 {[%clk 0:02:51.8]} 9. Nxf6+ {[%clk 0:02:59.3]} 9... gxf6
{[%clk 0:02:52.7]} 10. d3 {[%clk 0:02:59.6]} 10... O-O-O {[%clk 0:02:52.5]} 11.
Be3 {[%clk 0:02:59.9]} 11... Rg8 {[%clk 0:02:46.2]} 12. a3 {[%clk 0:02:59.1]}
12... Qc7 {[%clk 0:02:37.2]} 13. Qe2 {[%clk 0:02:41.1]} 13... a6 {[%clk
0:02:27.7]} 14. c3 {[%clk 0:02:39.7]} 14... Ne7 {[%clk 0:02:22]} 15. b4 {[%clk
0:02:20.4]} 15... Nd5 {[%clk 0:02:20.4]} 16. Rac1 {[%clk 0:02:06.6]} 16... Bh6
{[%clk 0:01:55]} 17. Bd2 {[%clk 0:01:12.2]} 17... Bxf4 {[%clk 0:01:49.2]} 18.
Kh1 {[%clk 0:01:12.5]} 18... Bxd2 {[%clk 0:01:44.6]} 19. Nxd2 {[%clk 0:01:13.4]}
19... f5 {[%clk 0:01:39.8]} 20. Qf3 {[%clk 0:01:11.3]} 20... Nf6 {[%clk
0:01:32.5]} 21. bxc5 {[%clk 0:01:11.5]} 21... Ng4 {[%clk 0:01:29.9]} 22. g3
{[%clk 0:00:59.9]} 22... Ne5 {[%clk 0:01:24.6]} 23. Qg2 {[%clk 0:00:57.4]} 23...
Nxd3 {[%clk 0:01:24.2]} 24. Rb1 {[%clk 0:00:57.5]} 24... Nxc5 {[%clk 0:01:12.9]}
25. Nc4 {[%clk 0:00:57.9]} 25... Qc6 {[%clk 0:01:03.8]} 26. Qxc6+ {[%clk
0:00:55.2]} 26... bxc6 {[%clk 0:01:04.7]} 27. Ne5 {[%clk 0:00:53.4]} 27... Kc7
{[%clk 0:01:02.1]} 28. Nxf7 {[%clk 0:00:53.2]} 28... Rd2 {[%clk 0:01:01.1]} 29.
Rb4 {[%clk 0:00:49.4]} 29... Nd3 {[%clk 0:00:45.2]} 30. Rh4 {[%clk 0:00:49.4]}
30... Rg7 {[%clk 0:00:37.2]} 31. Nh6 {[%clk 0:00:49.3]} 31... f4 {[%clk
0:00:32.2]} 32. Ng4 {[%clk 0:00:46]} 32... h5 {[%clk 0:00:25.2]} 33. Nf6 {[%clk
0:00:27.8]} 33... fxg3 {[%clk 0:00:24.9]} 34. hxg3 {[%clk 0:00:23.8]} 34... Rxg3
{[%clk 0:00:23.8]} 35. Ne4 {[%clk 0:00:22.3]} 35... Rgg2 {[%clk 0:00:14.5]} 36.
Nxd2 {[%clk 0:00:22.8]} 36... Rxd2 {[%clk 0:00:15.3]} 37. Rxh5 {[%clk
0:00:23.4]} 37... Nf2+ {[%clk 0:00:15.5]} 38. Kg1 {[%clk 0:00:23.8]} 38... Ne4
{[%clk 0:00:14.9]} 39. Rh4 {[%clk 0:00:21.3]} 39... Nxc3 {[%clk 0:00:13.6]} 40.
Rf7+ {[%clk 0:00:21]} 40... Kd6 {[%clk 0:00:13.1]} 41. Rf8 {[%clk 0:00:20.6]}
41... Nd5 {[%clk 0:00:12.1]} 42. Ra4 {[%clk 0:00:20.1]} 42... Ke7 {[%clk
0:00:10]} 43. Rh8 {[%clk 0:00:19.7]} 43... c5 {[%clk 0:00:08.6]} 44. Rxa6 {[%clk
0:00:19.9]} 44... c4 {[%clk 0:00:09.1]} 45. Rc6 {[%clk 0:00:19.5]} 45... c3
{[%clk 0:00:09.4]} 46. Rhc8 {[%clk 0:00:19.9]} 46... Kd7 {[%clk 0:00:08.3]} 47.
a4 {[%clk 0:00:19.8]} 47... Ra2 {[%clk 0:00:04]} 48. Rc4 {[%clk 0:00:19.8]}
48... Rxa4 {[%clk 0:00:03.5]} 49. Rxa4 {[%clk 0:00:13.5]} 49... Kxc8 {[%clk
0:00:04.4]} 50. Rc4+ {[%clk 0:00:14]} 50... Kd7 {[%clk 0:00:05.1]} 51. Kf2
{[%clk 0:00:14.8]} 51... Kd6 {[%clk 0:00:05.8]} 52. Kf3 {[%clk 0:00:15.3]} 52...
Ke5 {[%clk 0:00:06.4]} 53. Ke2 {[%clk 0:00:14.6]} 53... Kd6 {[%clk 0:00:06.3]}
54. Kd3 {[%clk 0:00:15]} 54... Ke5 {[%clk 0:00:06.2]} 55. Rc8 {[%clk 0:00:13.5]}
55... Kd6 {[%clk 0:00:05.6]} 56. Ke4 {[%clk 0:00:13.1]} 56... Nf6+ {[%clk
0:00:05.1]} 57. Kd4 {[%clk 0:00:13.8]} 57... Nd5 {[%clk 0:00:06]} 58. Rc4 {[%clk
0:00:12.6]} 58... e5+ {[%clk 0:00:04.4]} 59. Kd3 {[%clk 0:00:13.1]} 59... Ke6
{[%clk 0:00:03.5]} 60. Rc6+ {[%clk 0:00:13.1]} 60... Kf5 {[%clk 0:00:03.4]} 61.
Rd6 {[%clk 0:00:13.6]} 61... Nf4+ {[%clk 0:00:02.3]} 62. Kxc3 {[%clk 0:00:13.8]}
62... Ke4 {[%clk 0:00:02.6]} 63. Kd2 {[%clk 0:00:14.1]} 63... Nd5 {[%clk
0:00:02.6]} 64. Rd8 {[%clk 0:00:13.5]} 64... Nf4 {[%clk 0:00:03.5]} 65. Re8
{[%clk 0:00:12.5]} 65... Nd5 {[%clk 0:00:04.4]} 66. Ke2 {[%clk 0:00:12.9]} 66...
Kd4 {[%clk 0:00:04.6]} 67. Kf3 {[%clk 0:00:13.2]} 67... Nc3 {[%clk 0:00:04.1]}
68. Rd8+ {[%clk 0:00:13.4]} 68... Nd5 {[%clk 0:00:04.2]} 69. Kg4 {[%clk
0:00:14.2]} 69... Kc5 {[%clk 0:00:04.1]} 70. Kf5 {[%clk 0:00:14]} 70... Nb4
{[%clk 0:00:04]} 71. Rd1 {[%clk 0:00:13.4]} 71... Nc6 {[%clk 0:00:04.9]} 72. Ke4
{[%clk 0:00:13.8]} 72... Nb4 {[%clk 0:00:04.2]} 73. Kxe5 {[%clk 0:00:13.6]}
73... Kc4 {[%clk 0:00:05.1]} 74. Ke4 {[%clk 0:00:13.9]} 74... Kc5 {[%clk
0:00:04.4]} 75. Rc1+ {[%clk 0:00:14]} 75... Kb5 {[%clk 0:00:04.4]} 76. Kd4
{[%clk 0:00:14.6]} 76... Nc6+ {[%clk 0:00:04.9]} 77. Kd5 {[%clk 0:00:15.2]}
77... Nb4+ {[%clk 0:00:05.5]} 78. Kd6 {[%clk 0:00:15.9]} 78... Ka4 {[%clk
0:00:05]} 79. Rb1 {[%clk 0:00:15.2]} 79... Nd3 {[%clk 0:00:04.3]} 80. Kd5 {[%clk
0:00:14.9]} 80... Ka3 {[%clk 0:00:03.8]} 81. Kc4 {[%clk 0:00:14.3]} 81... Nb2+
{[%clk 0:00:03.6]} 82. Kc3 {[%clk 0:00:14.2]} 82... Na4+ {[%clk 0:00:04.2]} 83.
Kc2 {[%clk 0:00:14.8]} 83... Nc5 {[%clk 0:00:03.7]} 84. Rb5 {[%clk 0:00:15]}
84... Na4 {[%clk 0:00:03.3]} 85. Rb3+ {[%clk 0:00:15.3]} 85... Ka2 {[%clk
0:00:03.4]} 86. Rg3 {[%clk 0:00:13.6]} 86... Nb2 {[%clk 0:00:02.9]} 87. Kc3
{[%clk 0:00:12.2]} 87... Ka3 {[%clk 0:00:02.4]} 88. Kc2+ {[%clk 0:00:10.8]}
88... Ka2 {[%clk 0:00:02.9]} 89. Rg8 {[%clk 0:00:11.1]} 89... Na4 {[%clk
0:00:02.6]} 90. Rb8 {[%clk 0:00:10.8]} 90... Ka3 {[%clk 0:00:03.5]} 91. Kd3
{[%clk 0:00:11.2]} 91... Nb2+ {[%clk 0:00:03.2]} 92. Kc3 {[%clk 0:00:11.5]}
92... Na4+ {[%clk 0:00:03.6]} 93. Kd4 {[%clk 0:00:12.2]} 93... Nb2 {[%clk
0:00:03.4]} 94. Rb7 {[%clk 0:00:11.7]} 94... Na4 {[%clk 0:00:02.4]} 95. Kc4
{[%clk 0:00:11.4]} 95... Nb2+ {[%clk 0:00:02.5]} 96. Kc3 {[%clk 0:00:12.1]}
96... Na4+ {[%clk 0:00:02.9]} 97. Kc2 {[%clk 0:00:12.8]} 97... Nc5 {[%clk
0:00:03]} 98. Rb5 {[%clk 0:00:13.1]} 98... Na4 {[%clk 0:00:03]} 99. Rb3+ {[%clk
0:00:13.8]} 99... Ka2 {[%clk 0:00:03.5]} 100. Rb4 {[%clk 0:00:13.7]} 100... Ka3
{[%clk 0:00:04.1]} 101. Rb3+ {[%clk 0:00:12.5]} 1/2-1/2

[Event "Early-Titled-Tuesday-Blitz-February-20-2024"]
[Site "Chess.com"]
[Date "2024.02.20"]
[Round "5"]
[White "arnash_bauyrzhan"]
[Black "Muslim_player_05"]
[Result "1/2-1/2"]
[WhiteElo "2266"]
[BlackElo "2470"]
[TimeControl "180+1"]
[EndTime "8:58:50 PST"]
[Termination "Game drawn - insufficient material"]

1. e4 {[%clk 0:02:54.6]} 1... c5 {[%clk 0:02:57.5]} 2. Nf3 {[%clk 0:02:54.2]}
2... g6 {[%clk 0:02:58]} 3. c3 {[%clk 0:02:53.8]} 3... d5 {[%clk 0:02:56.9]} 4.
e5 {[%clk 0:02:52.6]} 4... Bg7 {[%clk 0:02:56.1]} 5. d4 {[%clk 0:02:52.6]} 5...
cxd4 {[%clk 0:02:56.1]} 6. cxd4 {[%clk 0:02:53.5]} 6... a6 {[%clk 0:02:56.2]} 7.
h3 {[%clk 0:02:38]} 7... Nc6 {[%clk 0:02:55.9]} 8. Be2 {[%clk 0:02:20.6]} 8...
f6 {[%clk 0:02:53.2]} 9. Bf4 {[%clk 0:02:01.6]} 9... fxe5 {[%clk 0:02:40.6]} 10.
Nxe5 {[%clk 0:01:59.2]} 10... Nf6 {[%clk 0:02:33.9]} 11. O-O {[%clk 0:01:54.8]}
11... O-O {[%clk 0:02:33.8]} 12. Nxc6 {[%clk 0:01:45.1]} 12... bxc6 {[%clk
0:02:34.7]} 13. Nd2 {[%clk 0:01:44.9]} 13... Nh5 {[%clk 0:02:22.1]} 14. Bh2
{[%clk 0:01:24.1]} 14... Nf4 {[%clk 0:02:00.9]} 15. Nf3 {[%clk 0:01:03.1]} 15...
Qb6 {[%clk 0:01:20.7]} 16. b3 {[%clk 0:00:51.5]} 16... a5 {[%clk 0:01:18.8]} 17.
Rc1 {[%clk 0:00:50.8]} 17... Nxe2+ {[%clk 0:01:17.8]} 18. Qxe2 {[%clk
0:00:50.9]} 18... Ba6 {[%clk 0:01:18.4]} 19. Qe6+ {[%clk 0:00:51]} 19... Kh8
{[%clk 0:01:14.8]} 20. Rxc6 {[%clk 0:00:50.8]} 20... Qb5 {[%clk 0:00:51.5]} 21.
Rfc1 {[%clk 0:00:37.6]} 21... Rf6 {[%clk 0:00:51.1]} 22. Qd7 {[%clk 0:00:21.2]}
22... Rxc6 {[%clk 0:00:42.9]} 23. Qxc6 {[%clk 0:00:19.2]} 23... Qxc6 {[%clk
0:00:07]} 24. Rxc6 {[%clk 0:00:18.6]} 24... Rc8 {[%clk 0:00:07.9]} 25. Rxc8+
{[%clk 0:00:17.4]} 25... Bxc8 {[%clk 0:00:08.8]} 26. Be5 {[%clk 0:00:17.6]}
26... Kg8 {[%clk 0:00:08.6]} 27. Bxg7 {[%clk 0:00:17]} 27... Kxg7 {[%clk
0:00:09.5]} 28. Ne5 {[%clk 0:00:17.3]} 28... Bf5 {[%clk 0:00:09.8]} 29. Nc6
{[%clk 0:00:17.2]} 29... Bb1 {[%clk 0:00:09.6]} 30. a3 {[%clk 0:00:17.2]} 30...
Kf6 {[%clk 0:00:06.1]} 31. Nxa5 {[%clk 0:00:16.7]} 31... e5 {[%clk 0:00:06.8]}
32. Nc6 {[%clk 0:00:14.5]} 32... exd4 {[%clk 0:00:04]} 33. Nxd4 {[%clk
0:00:14.7]} 33... Ke5 {[%clk 0:00:04.9]} 34. Nf3+ {[%clk 0:00:10.8]} 34... Kd6
{[%clk 0:00:05.5]} 35. Kf1 {[%clk 0:00:10.1]} 35... Bc2 {[%clk 0:00:03.8]} 36.
b4 {[%clk 0:00:09.7]} 36... Bd3+ {[%clk 0:00:03.3]} 37. Ke1 {[%clk 0:00:09.9]}
37... Be4 {[%clk 0:00:03.6]} 38. Kd2 {[%clk 0:00:07.5]} 38... d4 {[%clk
0:00:04.2]} 39. Nxd4 {[%clk 0:00:07.1]} 39... Bxg2 {[%clk 0:00:04.2]} 40. h4
{[%clk 0:00:07.7]} 40... Kd5 {[%clk 0:00:03.7]} 41. Kc3 {[%clk 0:00:07.3]} 41...
Be4 {[%clk 0:00:03.1]} 42. Ne2 {[%clk 0:00:06.9]} 42... Bf3 {[%clk 0:00:02.9]}
43. Nf4+ {[%clk 0:00:06.8]} 43... Ke4 {[%clk 0:00:03.4]} 44. Ne6 {[%clk
0:00:06.1]} 44... Ke5 {[%clk 0:00:03.4]} 45. Ng5 {[%clk 0:00:06.3]} 45... Bd5
{[%clk 0:00:03.6]} 46. Nxh7 {[%clk 0:00:06.5]} 46... Kf4 {[%clk 0:00:04.2]} 47.
Nf8 {[%clk 0:00:05.6]} 47... Bf7 {[%clk 0:00:03]} 48. Nd7 {[%clk 0:00:05.5]}
48... Kf5 {[%clk 0:00:01.8]} 49. b5 {[%clk 0:00:04.1]} 49... Ke6 {[%clk
0:00:01.8]} 50. Nc5+ {[%clk 0:00:03.5]} 50... Kd5 {[%clk 0:00:02.4]} 51. Kb4
{[%clk 0:00:03.5]} 51... Be8 {[%clk 0:00:01.9]} 52. b6 {[%clk 0:00:03.7]} 52...
Bc6 {[%clk 0:00:02.4]} 53. a4 {[%clk 0:00:03.7]} 53... Kd6 {[%clk 0:00:01.6]}
54. a5 {[%clk 0:00:04.2]} 54... Bd5 {[%clk 0:00:02]} 55. a6 {[%clk 0:00:04.7]}
55... Kc6 {[%clk 0:00:02.6]} 56. a7 {[%clk 0:00:04.6]} 56... Kxb6 {[%clk
0:00:02.5]} 57. a8=Q {[%clk 0:00:04.4]} 57... Bxa8 {[%clk 0:00:02]} 58. Nd7+
{[%clk 0:00:04.2]} 58... Kc7 {[%clk 0:00:02.5]} 59. Ne5 {[%clk 0:00:04.7]} 59...
Be4 {[%clk 0:00:02.9]} 60. Kc4 {[%clk 0:00:05]} 60... Kd6 {[%clk 0:00:02.7]} 61.
Kd4 {[%clk 0:00:05.7]} 61... Bf5 {[%clk 0:00:03.6]} 62. Nf3 {[%clk 0:00:04.6]}
62... Ke6 {[%clk 0:00:03.7]} 63. Ng5+ {[%clk 0:00:04.8]} 63... Kf6 {[%clk
0:00:04.1]} 64. Ke3 {[%clk 0:00:04.7]} 64... Ke5 {[%clk 0:00:03.8]} 65. Nf7+
{[%clk 0:00:04.7]} 65... Kf6 {[%clk 0:00:04]} 66. Ng5 {[%clk 0:00:05.1]} 66...
Ke5 {[%clk 0:00:04.3]} 67. Kf3 {[%clk 0:00:05.1]} 67... Bd7 {[%clk 0:00:03.4]}
68. Kg3 {[%clk 0:00:05.3]} 68... Kf5 {[%clk 0:00:03.6]} 69. f4 {[%clk
0:00:04.9]} 69... Bc6 {[%clk 0:00:04]} 70. Nf3 {[%clk 0:00:04.7]} 70... Bd5
{[%clk 0:00:03.4]} 71. Ne5 {[%clk 0:00:05.1]} 71... Be4 {[%clk 0:00:02.6]} 72.
Nf3 {[%clk 0:00:05]} 72... Bd5 {[%clk 0:00:02.5]} 73. Nd4+ {[%clk 0:00:05.6]}
73... Kf6 {[%clk 0:00:02.6]} 74. Kg4 {[%clk 0:00:05.9]} 74... Bb7 {[%clk
0:00:03.2]} 75. Nf3 {[%clk 0:00:06.1]} 75... Bc8+ {[%clk 0:00:03.6]} 76. Kg3
{[%clk 0:00:05.7]} 76... Bb7 {[%clk 0:00:04.5]} 77. Ng5 {[%clk 0:00:04.4]} 77...
Bd5 {[%clk 0:00:04.8]} 78. Nf3 {[%clk 0:00:04.6]} 78... Be4 {[%clk 0:00:04.8]}
79. Nd4 {[%clk 0:00:03.4]} 79... Bd5 {[%clk 0:00:05.2]} 80. Kg4 {[%clk
0:00:03.8]} 80... Bb7 {[%clk 0:00:05.7]} 81. h5 {[%clk 0:00:03.3]} 81... gxh5+
{[%clk 0:00:05.5]} 82. Kxh5 {[%clk 0:00:03.8]} 82... Bc8 {[%clk 0:00:05.5]} 83.
Kh4 {[%clk 0:00:03.9]} 83... Bd7 {[%clk 0:00:06.1]} 84. Kg3 {[%clk 0:00:04.6]}
84... Bf5 {[%clk 0:00:06.5]} 85. Kf3 {[%clk 0:00:05.2]} 85... Bd7 {[%clk
0:00:06.2]} 86. f5 {[%clk 0:00:05]} 86... Bxf5 {[%clk 0:00:06]} 1/2-1/2

[Event "Early-Titled-Tuesday-Blitz-February-20-2024"]
[Site "Chess.com"]
[Date "2024.02.20"]
[Round "5"]
[White "PositionalPanther"]
[Black "NovozhilovSemen"]
[Result "1/2-1/2"]
[WhiteElo "2521"]
[BlackElo "2665"]
[TimeControl "180+1"]
[EndTime "8:59:52 PST"]
[Termination "Game drawn by 50-move rule"]

1. Nf3 {[%clk 0:02:17.3]} 1... Nf6 {[%clk 0:02:58.5]} 2. g3 {[%clk 0:02:17.5]}
2... d5 {[%clk 0:02:57.4]} 3. Bg2 {[%clk 0:02:17.9]} 3... c6 {[%clk 0:02:54.3]}
4. O-O {[%clk 0:02:18.4]} 4... Bg4 {[%clk 0:02:54.5]} 5. h3 {[%clk 0:02:16.9]}
5... Bh5 {[%clk 0:02:54.3]} 6. c4 {[%clk 0:02:16.1]} 6... Nbd7 {[%clk
0:02:54.2]} 7. d4 {[%clk 0:02:14]} 7... e6 {[%clk 0:02:53.9]} 8. cxd5 {[%clk
0:02:13.3]} 8... cxd5 {[%clk 0:02:53.9]} 9. Nc3 {[%clk 0:02:10.7]} 9... Bd6
{[%clk 0:02:53.3]} 10. Qb3 {[%clk 0:02:09.4]} 10... b6 {[%clk 0:02:39.9]} 11.
Bf4 {[%clk 0:02:05]} 11... Bxf4 {[%clk 0:02:38.4]} 12. gxf4 {[%clk 0:02:05.9]}
12... O-O {[%clk 0:02:39.2]} 13. Ne5 {[%clk 0:02:03.8]} 13... Nxe5 {[%clk
0:02:37]} 14. fxe5 {[%clk 0:01:58.6]} 14... Ne8 {[%clk 0:02:35.5]} 15. Kh1
{[%clk 0:01:57.5]} 15... f6 {[%clk 0:02:34.5]} 16. f4 {[%clk 0:01:56.3]} 16...
fxe5 {[%clk 0:02:30.7]} 17. fxe5 {[%clk 0:01:54.7]} 17... Nc7 {[%clk 0:02:30.4]}
18. e4 {[%clk 0:01:41.4]} 18... dxe4 {[%clk 0:02:18.2]} 19. Rxf8+ {[%clk
0:01:34.1]} 19... Qxf8 {[%clk 0:02:16.7]} 20. Nxe4 {[%clk 0:01:33.9]} 20... Rd8
{[%clk 0:02:12.4]} 21. Qg3 {[%clk 0:01:20.7]} 21... Bg6 {[%clk 0:02:09.2]} 22.
Nd6 {[%clk 0:01:20]} 22... Ne8 {[%clk 0:01:59.2]} 23. Rf1 {[%clk 0:01:13.9]}
23... Qe7 {[%clk 0:01:59.2]} 24. d5 {[%clk 0:01:00.5]} 24... Nxd6 {[%clk
0:01:51.3]} 25. exd6 {[%clk 0:01:00.3]} 25... Qxd6 {[%clk 0:01:51.9]} 26. Qxd6
{[%clk 0:00:57.9]} 26... Rxd6 {[%clk 0:01:52.8]} 27. dxe6 {[%clk 0:00:58.4]}
27... Rxe6 {[%clk 0:01:53.7]} 28. Bd5 {[%clk 0:00:57.3]} 28... Be4+ {[%clk
0:01:53.6]} 29. Bxe4 {[%clk 0:00:56.6]} 29... Rxe4 {[%clk 0:01:54.5]} 30. Rc1
{[%clk 0:00:54.6]} 30... Kf7 {[%clk 0:01:49.1]} 31. Rc7+ {[%clk 0:00:54]} 31...
Re7 {[%clk 0:01:48.7]} 32. Rc6 {[%clk 0:00:53.5]} 32... h5 {[%clk 0:01:30]} 33.
a4 {[%clk 0:00:49.5]} 33... h4 {[%clk 0:01:25]} 34. a5 {[%clk 0:00:48.1]} 34...
bxa5 {[%clk 0:01:18.4]} 35. Ra6 {[%clk 0:00:47.3]} 35... g5 {[%clk 0:01:18.1]}
36. Rxa5 {[%clk 0:00:44.9]} 36... Kg6 {[%clk 0:01:15.4]} 37. b4 {[%clk
0:00:31.6]} 37... Rb7 {[%clk 0:01:08.2]} 38. b5 {[%clk 0:00:28.5]} 38... Rc7
{[%clk 0:01:03.1]} 39. Kg2 {[%clk 0:00:27.8]} 39... Rc2+ {[%clk 0:00:56.4]} 40.
Kg1 {[%clk 0:00:27.9]} 40... Rc1+ {[%clk 0:00:50.8]} 41. Kg2 {[%clk 0:00:28]}
41... Rc2+ {[%clk 0:00:51.2]} 42. Kg1 {[%clk 0:00:28.2]} 42... Rb2 {[%clk
0:00:48.2]} 43. Rxa7 {[%clk 0:00:27.6]} 43... Rxb5 {[%clk 0:00:48.4]} 44. Ra3
{[%clk 0:00:27.7]} 44... Kf5 {[%clk 0:00:48.3]} 45. Rf3+ {[%clk 0:00:26.6]}
45... Ke4 {[%clk 0:00:48.5]} 46. Rf8 {[%clk 0:00:26.6]} 46... Rf5 {[%clk
0:00:47.5]} 47. Ra8 {[%clk 0:00:23.3]} 47... Kf4 {[%clk 0:00:44.8]} 48. Ra4+
{[%clk 0:00:23.4]} 48... Kg3 {[%clk 0:00:43.5]} 49. Ra3+ {[%clk 0:00:22.2]}
49... Rf3 {[%clk 0:00:43]} 50. Ra5 {[%clk 0:00:22.5]} 50... Kf4 {[%clk
0:00:34.1]} 51. Ra4+ {[%clk 0:00:20.5]} 51... Kf5 {[%clk 0:00:34.6]} 52. Ra5+
{[%clk 0:00:20.7]} 52... Kf4 {[%clk 0:00:34.8]} 53. Ra4+ {[%clk 0:00:20.9]}
53... Kg3 {[%clk 0:00:35.4]} 54. Ra5 {[%clk 0:00:21.2]} 54... Kxh3 {[%clk
0:00:15.9]} 55. Rxg5 {[%clk 0:00:20.3]} 55... Ra3 {[%clk 0:00:16.6]} 56. Rg7
{[%clk 0:00:18.4]} 56... Ra1+ {[%clk 0:00:15.1]} 57. Kf2 {[%clk 0:00:18.6]}
57... Kh2 {[%clk 0:00:15.6]} 58. Rg4 {[%clk 0:00:16.1]} 58... h3 {[%clk
0:00:15.7]} 59. Rg6 {[%clk 0:00:16.1]} 59... Ra2+ {[%clk 0:00:15.8]} 60. Kf1
{[%clk 0:00:14.6]} 60... Rg2 {[%clk 0:00:14.9]} 61. Rh6 {[%clk 0:00:14.9]} 61...
Rg1+ {[%clk 0:00:15.1]} 62. Kf2 {[%clk 0:00:15.1]} 62... Rg7 {[%clk 0:00:15.6]}
63. Rf6 {[%clk 0:00:13.1]} 63... Rg2+ {[%clk 0:00:15.4]} 64. Kf1 {[%clk
0:00:13.3]} 64... Rb2 {[%clk 0:00:13.3]} 65. Rg6 {[%clk 0:00:11.9]} 65... Ra2
{[%clk 0:00:13.4]} 66. Rg7 {[%clk 0:00:11.9]} 66... Rg2 {[%clk 0:00:12.9]} 67.
Rf7 {[%clk 0:00:11.7]} 67... Kh1 {[%clk 0:00:13]} 68. Rf6 {[%clk 0:00:11.4]}
68... Ra2 {[%clk 0:00:10.4]} 69. Rg6 {[%clk 0:00:09.8]} 69... Ra3 {[%clk
0:00:08]} 70. Kf2 {[%clk 0:00:09.5]} 70... Kh2 {[%clk 0:00:08.5]} 71. Kf1 {[%clk
0:00:09.9]} 71... Rf3+ {[%clk 0:00:08.5]} 72. Ke2 {[%clk 0:00:09.7]} 72... Rf7
{[%clk 0:00:09.1]} 73. Rg5 {[%clk 0:00:10]} 73... Rf4 {[%clk 0:00:07.8]} 74. Rg6
{[%clk 0:00:10.3]} 74... Rf5 {[%clk 0:00:07.5]} 75. Rg7 {[%clk 0:00:10.6]} 75...
Kh1 {[%clk 0:00:08.1]} 76. Rg4 {[%clk 0:00:10.6]} 76... Rf6 {[%clk 0:00:08.4]}
77. Rg5 {[%clk 0:00:10.8]} 77... Ra6 {[%clk 0:00:08.4]} 78. Kf2 {[%clk
0:00:10.1]} 78... Ra2+ {[%clk 0:00:08.8]} 79. Kf1 {[%clk 0:00:10.2]} 79... Rg2
{[%clk 0:00:08.9]} 80. Rh5 {[%clk 0:00:09.1]} 80... Kh2 {[%clk 0:00:09.3]} 81.
Rf5 {[%clk 0:00:09]} 81... Kg3 {[%clk 0:00:09.9]} 82. Rg5+ {[%clk 0:00:08.4]}
82... Kf3 {[%clk 0:00:10.5]} 83. Rf5+ {[%clk 0:00:07.1]} 83... Kg4 {[%clk
0:00:10.5]} 84. Rf8 {[%clk 0:00:06.5]} 84... Ra2 {[%clk 0:00:10.7]} 85. Rg8+
{[%clk 0:00:06.7]} 85... Kf3 {[%clk 0:00:11.3]} 86. Rf8+ {[%clk 0:00:06.2]}
86... Ke4 {[%clk 0:00:11.8]} 87. Re8+ {[%clk 0:00:06.5]} 87... Kf5 {[%clk
0:00:12.3]} 88. Rf8+ {[%clk 0:00:07]} 88... Kg6 {[%clk 0:00:12.8]} 89. Rg8+
{[%clk 0:00:07.5]} 89... Kf7 {[%clk 0:00:11.8]} 90. Rh8 {[%clk 0:00:07.8]} 90...
h2 {[%clk 0:00:11.5]} 91. Rh7+ {[%clk 0:00:07.3]} 91... Kg6 {[%clk 0:00:11.9]}
92. Rh3 {[%clk 0:00:07.1]} 92... Kf5 {[%clk 0:00:12.3]} 93. Rh4 {[%clk
0:00:06.9]} 93... Kg5 {[%clk 0:00:12.7]} 94. Rh8 {[%clk 0:00:06.7]} 94... Rb2
{[%clk 0:00:13.4]} 95. Rh7 {[%clk 0:00:06.5]} 95... Kf4 {[%clk 0:00:13.9]} 96.
Rh8 {[%clk 0:00:05.2]} 96... Ke4 {[%clk 0:00:14.4]} 97. Re8+ {[%clk 0:00:05.1]}
97... Kf3 {[%clk 0:00:15.1]} 98. Rf8+ {[%clk 0:00:05.5]} 98... Kg4 {[%clk
0:00:15.8]} 99. Rg8+ {[%clk 0:00:06.1]} 99... Kh3 {[%clk 0:00:16]} 100. Rh8+
{[%clk 0:00:06.5]} 100... Kg3 {[%clk 0:00:16.9]} 101. Rg8+ {[%clk 0:00:07]}
101... Kf4 {[%clk 0:00:17.8]} 102. Rf8+ {[%clk 0:00:06.7]} 102... Kg5 {[%clk
0:00:18.7]} 103. Rg8+ {[%clk 0:00:07.2]} 103... Kf5 {[%clk 0:00:19.4]} 104. Rf8+
{[%clk 0:00:06.9]} 104... Ke6 {[%clk 0:00:20]} 105. Re8+ {[%clk 0:00:07.1]}
105... Kd6 {[%clk 0:00:20.7]} 106. Rh8 {[%clk 0:00:07.6]} 106... Ke5 {[%clk
0:00:21.6]} 107. Rh5+ {[%clk 0:00:07.5]} 107... Kf6 {[%clk 0:00:22.2]} 108. Rh8
{[%clk 0:00:08.3]} 108... Kf7 {[%clk 0:00:22.8]} 109. Rh4 {[%clk 0:00:08.6]}
109... Kg7 {[%clk 0:00:23.3]} 110. Rh3 {[%clk 0:00:08.6]} 110... Kg6 {[%clk
0:00:23.8]} 111. Rh8 {[%clk 0:00:08.9]} 111... Kg7 {[%clk 0:00:24.7]} 112. Rh3
{[%clk 0:00:09]} 112... Rc2 {[%clk 0:00:25.4]} 113. Rh4 {[%clk 0:00:09.4]}
113... Kg6 {[%clk 0:00:25.8]} 114. Rh3 {[%clk 0:00:09.8]} 114... Kf5 {[%clk
0:00:24.6]} 115. Rh8 {[%clk 0:00:10.2]} 115... Ke4 {[%clk 0:00:25.2]} 116. Re8+
{[%clk 0:00:10.5]} 116... Kd4 {[%clk 0:00:25.8]} 117. Rd8+ {[%clk 0:00:10.9]}
117... Ke5 {[%clk 0:00:25.1]} 118. Re8+ {[%clk 0:00:11.4]} 118... Kd6 {[%clk
0:00:25.6]} 119. Rf8 {[%clk 0:00:11.6]} 119... Kc7 {[%clk 0:00:26.1]} 120. Rh8
{[%clk 0:00:11.7]} 120... Kb6 {[%clk 0:00:26.6]} 121. Rh6+ {[%clk 0:00:12.1]}
121... Ka5 {[%clk 0:00:27.1]} 122. Rh5+ {[%clk 0:00:12.7]} 122... Ka4 {[%clk
0:00:27.8]} 123. Rh4+ {[%clk 0:00:13.2]} 123... Ka3 {[%clk 0:00:28.7]} 124. Rh3+
{[%clk 0:00:13.6]} 124... Kb2 {[%clk 0:00:29.3]} 125. Rh7 {[%clk 0:00:13.8]}
125... Kc1 {[%clk 0:00:30]} 126. Rh6 {[%clk 0:00:14.1]} 126... Rd2 {[%clk
0:00:30.4]} 127. Rh7 {[%clk 0:00:14.4]} 127... Kc2 {[%clk 0:00:30.8]} 128. Rh6
{[%clk 0:00:14.9]} 128... Kd3 {[%clk 0:00:31.2]} 129. Rh7 {[%clk 0:00:15.4]}
129... Re2 {[%clk 0:00:30]} 130. Rh6 {[%clk 0:00:15.5]} 130... Ra2 {[%clk
0:00:29]} 131. Rh3+ {[%clk 0:00:15.6]} 131... Ke4 {[%clk 0:00:29.3]} 132. Rh8
{[%clk 0:00:15.8]} 132... Ke3 {[%clk 0:00:29.9]} 133. Re8+ {[%clk 0:00:16.1]}
133... Kd4 {[%clk 0:00:30.2]} 134. Rd8+ {[%clk 0:00:16.4]} 134... Kc3 {[%clk
0:00:30.2]} 135. Rh8 {[%clk 0:00:16.8]} 135... Kc4 {[%clk 0:00:30.2]} 136. Rh4+
{[%clk 0:00:17.1]} 136... Kd3 {[%clk 0:00:31.1]} 137. Rh8 {[%clk 0:00:17.6]}
137... Ke4 {[%clk 0:00:31.7]} 138. Re8+ {[%clk 0:00:18]} 138... Kf3 {[%clk
0:00:32.1]} 139. Rf8+ {[%clk 0:00:18.2]} 139... Kg3 {[%clk 0:00:33]} 140. Rg8+
{[%clk 0:00:18.7]} 140... Kh3 {[%clk 0:00:33.5]} 1/2-1/2